bitfinex/quotes_ETHUSD_20250319
["timestamp","ask_amount","ask_price","bid_price","bid_amount"]
[1742388237346,4.66413332,2006.4,2006.0,4.98495]
[1742388237553,9.64879332,2006.2,2005.8,10.61744]
[1742388237789,4.98425,2006.4,2005.9,4.98522]
[1742388237790,0.52622333,2006.3,2005.9,4.98522]
[1742388237992,0.52622333,2006.3,2006.1,4.98469]
[1742388238200,16.19896,2006.5,2006.1,4.98465]
[1742388238347,4.98422,2006.4,2006.1,4.98478]
[1742388238824,4.66413332,2006.2,2005.9,9.97042]
[1742388239090,4.66413332,2006.0,2005.9,4.98517]
[1742388239388,4.66413332,2006.0,2005.8,4.98537]
[1742388239549,4.66413332,2006.0,2005.7,4.98572]
[1742388239876,4.66413332,2005.8,2005.6,5.77717]
[1742388240090,4.66413332,2005.8,2005.6,5.77715]
[1742388240456,4.66413332,2005.8,2005.6,0.7913]
[1742388240662,4.66413332,2005.8,2005.5,4.98628]
[1742388240975,4.66413332,2005.6,2005.4,4.98652]
[1742388241354,4.66413332,2005.6,2005.4,4.98638]
[1742388241556,4.66413332,2005.6,2005.5,4.98628]
[1742388242382,3.55,2006.0,2005.4,4.9865]
[1742388242584,4.66413332,2005.7,2005.6,4.98586]
[1742388242769,4.66413332,2005.7,2005.6,9.97172]
[1742388243884,4.66413332,2005.7,2005.6,10.73782]
[1742388244470,4.66413332,2005.7,2005.6,5.75196]
[1742388244789,4.66413332,2005.7,2005.6,4.98586]
[1742388247056,4.98586,2005.6,2005.3,0.7959]
[1742388247290,4.66413332,2005.4,2005.3,4.98678]
[1742388248395,5.26223332,2005.4,2004.9,0.8003]
[1742388248570,4.66413332,2005.0,2004.9,5.78803]
[1742388249463,9.92636664,2005.0,2004.3,0.7687]
[1742388249697,0.46641333,2004.9,2004.4,4.98891]
[1742388249895,0.55,2004.8,2004.6,4.98851]
[1742388250206,5.26223332,2005.0,2004.8,4.98788]
[1742388250386,7.98682,2005.3,2004.5,5.617]
[1742388250387,0.55,2005.2,2004.5,5.617]
[1742388250565,5.53718,2005.2,2004.8,4.98783]
[1742388250960,0.55,2005.2,2004.9,9.97531]
[1742388251285,0.55,2005.2,2004.9,4.98762]
[1742388251496,4.66413332,2005.0,2004.9,4.98762]
[1742388252082,4.66413332,2005.0,2004.9,4.98777]
[1742388252288,4.66413332,2005.0,2004.8,9.97587]
[1742388252483,4.66413332,2005.0,2004.7,9.97638]
[1742388252685,5.21413332,2004.8,2004.5,4.98857]
[1742388252899,4.66413332,2004.6,2004.4,4.98893]
[1742388253205,4.66413332,2004.6,2004.5,4.98877]
[1742388254179,4.66413332,2004.8,2004.7,4.98827]
[1742388254482,0.55,2005.2,2005.0,4.98753]
[1742388254683,4.66413332,2005.1,2005.0,4.98753]
[1742388255082,4.21532724,2005.1,2005.0,4.98753]
[1742388256489,4.21532724,2005.1,2005.0,6.483847]
[1742388257511,4.21532724,2005.6,2005.4,4.98639]
[1742388257713,8.43065448,2005.6,2005.4,9.97276]
[1742388258035,8.43065448,2005.6,2005.4,4.98637]
[1742388258417,4.21532724,2005.6,2005.5,4.98628]
[1742388258587,8.43065448,2005.6,2005.5,4.98628]
[1742388259611,4.21532724,2005.6,2005.5,6.49669007]
[1742388261435,4.21532724,2005.6,2005.5,5.67099007]
[1742388261641,4.21532724,2005.6,2005.5,4.98628]
[1742388262454,8.43065448,2005.6,2005.4,4.98637]
[1742388262750,9.02875448,2005.6,2005.4,4.98637]
[1742388263116,4.66740815,2005.5,2005.4,4.98637]
[1742388263502,9.65377815,2005.5,2004.9,0.7593]
[1742388263699,5.51292082,2005.5,2005.1,4.98712]
[1742388264115,4.98688,2005.3,2004.9,5.74699]
[1742388264319,4.66740815,2005.1,2004.9,4.98766]
[1742388265750,9.65470815,2005.1,2004.8,4.98802]
[1742388266051,4.66740815,2004.9,2004.8,4.98802]
[1742388267141,4.66740815,2004.9,2004.7,4.98826]
[1742388267347,4.66740815,2004.9,2004.8,4.98802]
[1742388268131,4.66740815,2005.2,2005.0,4.9875]
[1742388268445,4.66740815,2005.2,2005.0,4.98737]
[1742388270669,4.66740815,2005.2,2004.9,4.98776]
[1742388270837,4.66740815,2005.0,2004.8,4.98793]
[1742388271372,4.66740815,2005.0,2004.8,9.97584]
[1742388271835,4.66740815,2005.0,2004.9,4.98777]
[1742388275560,4.66740815,2005.0,2004.9,6.561042]
[1742388275962,4.66740815,2005.0,2004.9,4.98777]
[1742388283295,4.21576344,2005.0,2004.9,4.98777]
[1742388287067,4.98493,2006.1,2006.0,4.98504]
[1742388287068,0.5981,2006.1,2006.0,4.98504]
[1742388287376,4.21576344,2006.1,2005.9,4.98526]
[1742388287579,5.13577678,2006.1,2005.9,4.98515]
[1742388287920,4.98515,2005.9,2005.8,4.98535]
[1742388288081,4.21576344,2005.9,2005.8,4.98535]
[1742388290926,4.21576344,2005.9,2005.7,9.97148]
[1742388291207,0.5981,2005.7,2005.6,4.98603]
[1742388291407,4.21576344,2005.6,2005.5,4.98628]
[1742388292004,17.244,2006.0,2005.8,4.98554]
[1742388292170,17.244,2006.0,2005.9,4.98529]
[1742388292504,0.5981,2006.1,2005.9,9.97058]
[1742388292691,0.5981,2006.1,2006.0,4.98504]
[1742388292890,0.5981,2006.1,2005.9,4.98529]
[1742388293286,4.21576344,2006.0,2005.9,4.98514]
[1742388293687,4.21576344,2006.0,2005.8,4.98544]
[1742388293872,4.21576344,2006.0,2005.9,4.98529]
[1742388295106,3.5981,2006.3,2005.6,4.98603]
[1742388295403,4.21576344,2005.9,2005.8,5.80374]
[1742388295820,4.21576344,2006.1,2006.0,4.98504]
[1742388295977,3.5981,2006.5,2006.2,4.98432]
[1742388296178,3.5981,2006.5,2006.3,4.98426]
[1742388296422,0.55,2006.4,2006.0,4.98497]
[1742388296623,0.55,2006.0,2005.7,4.98557]
[1742388296918,5.53504,2006.0,2005.7,4.98557]
[1742388297375,8.98152688,2005.8,2005.6,4.98594]
[1742388297572,4.21576344,2005.8,2005.7,4.98579]
[1742388298079,4.21576344,2005.8,2005.7,1.786473]
[1742388298283,4.21576344,2005.8,2005.7,4.98567]
[1742388298902,12.79799344,2006.4,2006.1,4.98477]
[1742388299077,7.81386344,2006.4,2005.5,11.28875]
[1742388299281,7.81386344,2006.4,2006.2,4.98434]
[1742388299494,4.21576344,2006.4,2006.2,4.98434]
[1742388299780,5.58133,2006.8,2006.3,5.74811]
[1742388300005,8.43152688,2006.4,2006.3,4.9842]
[1742388300716,8.43152688,2006.4,2006.2,4.98445]
[1742388300888,9.26520308,2006.4,2006.2,4.98445]
[1742388301089,9.26520308,2006.4,2006.2,9.96883]
[1742388301395,9.26520308,2006.4,2006.2,4.98438]
[1742388301596,8.43152688,2006.4,2006.2,4.98438]
[1742388301902,8.43152688,2006.4,2006.3,4.98429]
[1742388302111,4.21576344,2006.4,2006.3,4.98429]
[1742388302817,8.43152688,2006.4,2006.1,4.98476]
[1742388302980,4.21576344,2006.2,2006.1,4.98476]
[1742388303392,4.21576344,2006.2,2006.0,4.98495]
[1742388303589,0.55,2006.1,2005.8,4.98552]
[1742388303800,4.21576344,2006.0,2005.9,4.98529]
[1742388304283,4.81386344,2006.4,2006.2,4.98454]
[1742388304483,9.02962688,2006.4,2006.2,4.98444]
[1742388304683,4.81386344,2006.4,2006.2,9.96885]
[1742388304886,17.239,2006.5,2006.3,4.98429]
[1742388305111,11.70074,2007.0,2006.6,4.98344]
[1742388305317,0.5981,2006.6,2005.8,0.7828]
[1742388305518,4.98437,2006.3,2005.9,9.97016]
[1742388305717,0.55,2006.2,2005.9,4.98504]
[1742388306015,4.21576344,2006.0,2005.9,4.98504]
[1742388306175,0.55,2006.2,2005.9,9.97019]
[1742388306385,4.21576344,2006.0,2005.9,9.97019]
[1742388306915,4.21576344,2006.0,2005.8,0.7828]
[1742388306916,4.21576344,2006.2,2006.0,4.98482]
[1742388307279,4.76576344,2006.2,2006.1,4.98479]
[1742388307681,4.76576344,2006.2,2005.9,9.97036]
[1742388308290,4.76576344,2006.2,2006.0,4.98501]
[1742388308731,4.76576344,2006.2,2005.9,4.98523]
[1742388309025,4.76576344,2006.2,2005.9,4.98517]
[1742388309239,4.76576344,2006.2,2005.8,5.76833]
[1742388309398,4.21576344,2006.0,2005.8,0.7828]
[1742388309595,6.50969034,2006.2,2005.8,0.7828]
[1742388309596,0.55,2006.2,2005.8,5.76828]
[1742388309813,4.21576344,2006.1,2005.8,5.76818]
[1742388310033,9.20061344,2006.1,2005.8,0.7828]
[1742388310331,4.21576344,2006.1,2005.8,5.76824]
[1742388310546,4.21576344,2006.1,2005.8,5.76819]
[1742388310843,4.21576344,2006.1,2005.9,4.98529]
[1742388311215,4.21576344,2006.1,2005.8,5.76819]
[1742388311570,4.21576344,2006.1,2005.9,4.98527]
[1742388312126,4.21576344,2006.1,2005.9,4.98514]
[1742388312426,4.21576344,2006.1,2006.0,4.98504]
[1742388314509,4.21576344,2006.1,2005.9,4.98514]
[1742388314727,4.21576344,2006.1,2006.0,4.98504]
[1742388314900,4.21576344,2006.1,2005.9,4.98514]
[1742388315096,4.21576344,2006.1,2005.9,4.98513]
[1742388315340,4.21576344,2006.1,2006.0,4.98504]
[1742388316247,4.21576344,2006.4,2006.3,4.98421]
[1742388316913,4.21576344,2006.4,2006.2,4.98438]
[1742388317116,4.21576344,2006.4,2006.3,4.98429]
[1742388318438,4.21576344,2006.4,2006.2,4.98438]
[1742388318638,4.21576344,2006.4,2006.2,9.96879]
[1742388318953,4.21576344,2006.4,2006.2,4.98438]
[1742388319126,5.19551778,2006.4,2006.1,4.98475]
[1742388319450,4.21576344,2006.3,2006.1,4.98475]
[1742388319659,4.21576344,2006.3,2006.2,4.98454]
[1742388320150,4.21576344,2006.3,2006.1,4.98475]
[1742388320448,4.21576344,2006.3,2006.1,4.9846]
[1742388320652,0.55,2006.5,2006.4,4.98405]
[1742388320950,4.21576344,2006.4,2006.3,4.98424]
[1742388322641,4.21576344,2006.4,2006.2,9.96892]
[1742388322815,4.21576344,2006.4,2006.3,4.98429]
[1742388323851,4.21576344,2006.6,2006.5,4.9838]
[1742388325217,4.21576344,2006.8,2006.6,4.98355]
[1742388325417,4.21576344,2006.8,2006.7,4.9833]
[1742388326049,17.3593125,2007.1,2007.0,4.98256]
[1742388326240,0.1213125,2007.1,2007.0,4.98256]
[1742388326581,0.1213125,2007.1,2007.0,6.16671907]
[1742388326750,0.1213125,2007.1,2007.0,4.98256]
[1742388326951,0.1213125,2007.1,2006.9,4.9828]
[1742388327129,4.21576344,2007.0,2006.9,4.9828]
[1742388328139,0.1213125,2007.1,2007.0,5.74706]
[1742388329452,0.1213125,2007.1,2007.0,8.74706]
[1742388329654,2.5e-06,2007.1,2007.0,8.74706]
[1742388330874,4.21576594,2007.1,2007.0,5.74706]
[1742388331023,2.5e-06,2007.1,2007.0,4.98256]
[1742388331657,4.21576594,2007.1,2007.0,4.98256]
[1742388333456,10.51536,2006.9,2006.4,5.48]
[1742388333659,4.21576344,2006.5,2006.4,4.98405]
[1742388333871,4.21576344,2006.5,2006.3,4.98415]
[1742388334091,4.21576344,2006.4,2006.3,4.98415]
[1742388334259,4.21576344,2006.4,2006.2,4.9845]
[1742388334556,4.21576344,2006.4,2006.2,4.98441]
[1742388334775,4.21576344,2006.4,2006.3,4.98429]
[1742388335129,4.21576344,2006.6,2006.4,4.98405]
[1742388335368,4.21576344,2006.6,2006.5,4.9838]
[1742388336863,4.21576344,2006.6,2006.4,4.98405]
[1742388337162,4.21576344,2006.6,2006.5,4.9838]
[1742388337469,12.06719997,2007.0,2006.7,4.98324]
[1742388337470,6.7181,2007.0,2006.7,4.98324]
[1742388337670,6.7181,2007.0,2006.8,4.98287]
[1742388337671,6.12,2007.0,2006.8,4.98287]
[1742388337902,6.12,2007.0,2006.9,4.9828]
[1742388338105,2.5e-06,2007.1,2007.0,4.98256]
[1742388338394,2.5e-06,2007.1,2007.0,5.76726]
[1742388338759,4.21576594,2007.1,2007.0,5.76726]
[1742388338961,4.21576594,2007.1,2007.0,4.98256]
[1742388339364,4.21576594,2007.1,2007.0,6.059276]
[1742388340159,2.5e-06,2007.1,2007.0,6.059276]
[1742388341399,2.5e-06,2007.1,2007.0,4.98256]
[1742388343489,4.21576594,2007.1,2007.0,5.79466]
[1742388343703,4.21576594,2007.1,2006.9,4.98272]
[1742388343999,4.21576594,2007.1,2007.0,4.98256]
[1742388344559,2.5e-06,2007.1,2007.0,4.98256]
[1742388344766,2.5e-06,2007.1,2007.0,6.477382]
[1742388346197,2.5e-06,2007.1,2007.0,7.278282]
[1742388346994,2.5e-06,2007.1,2007.0,6.477382]
[1742388347295,2.5e-06,2007.1,2007.0,4.98256]
[1742388348327,2.5e-06,2007.1,2006.9,9.96533]
[1742388348622,4.21576344,2007.0,2006.9,9.96533]
[1742388350022,2.5e-06,2007.1,2007.0,4.98256]
[1742388350205,2.5e-06,2007.1,2007.0,5.76966]
[1742388350407,2.5e-06,2007.1,2007.0,7.39297497]
[1742388350593,2.5e-06,2007.1,2007.0,7.343159]
[1742388356998,2.5e-06,2007.1,2007.0,6.556059]
[1742388357191,2.5e-06,2007.1,2007.0,4.98256]
[1742388359431,4.21576594,2007.1,2007.0,4.98256]
[1742388360438,2.5e-06,2007.1,2007.0,4.98256]
[1742388360641,0.5500025,2007.1,2006.8,4.98288]
[1742388360839,0.5981,2006.8,2006.4,9.96791]
[1742388361042,4.21576344,2006.5,2006.4,4.98386]
[1742388361610,4.21576344,2006.5,2006.3,4.98428]
[1742388361915,4.76576344,2006.5,2006.4,4.98405]
[1742388362145,17.226,2007.2,2006.9,4.9828]
[1742388362450,4.21576594,2007.1,2007.0,4.98256]
[1742388363330,4.21576594,2007.1,2006.9,9.96546]
[1742388363331,4.98256,2007.0,2006.9,9.96546]
[1742388363558,4.21576594,2007.1,2006.9,4.98266]
[1742388363852,4.21576594,2007.1,2006.8,4.98284]
[1742388363853,0.5981,2007.0,2006.8,4.98284]
[1742388364059,4.21576344,2006.9,2006.8,5.481124]
[1742388364267,2.5e-06,2007.1,2007.0,4.98256]
[1742388365563,2.5e-06,2007.1,2007.0,7.98256]
[1742388369148,4.21576594,2007.1,2006.6,0.7508]
[1742388369354,4.21576344,2006.7,2006.4,4.98384]
[1742388369554,4.21576344,2006.7,2006.4,4.98395]
[1742388369757,4.21576344,2006.5,2006.3,5.475]
[1742388370063,4.21576344,2006.5,2006.3,4.98418]
[1742388370348,4.21576344,2006.5,2006.4,4.98405]
[1742388370552,4.21576344,2006.5,2006.1,5.475]
[1742388370758,4.21576344,2006.5,2005.9,1.80933635]
[1742388370759,4.21576344,2006.2,2005.9,4.98527]
[1742388370922,4.21576344,2006.2,2005.9,6.529731]
[1742388371115,0.5981,2006.3,2005.9,6.529731]
[1742388371116,4.66380634,2006.1,2005.9,1.544581]
[1742388371419,4.66380634,2006.1,2005.8,4.98544]
[1742388371637,4.66380634,2005.9,2005.5,5.475]
[1742388371956,4.66380634,2005.7,2005.4,5.74245]
[1742388372143,4.66380634,2005.7,2005.3,1.00508435]
[1742388372144,4.66380634,2005.5,2005.3,4.98668]
[1742388373055,4.66380634,2005.5,2005.4,4.98653]
[1742388373425,4.66380634,2005.5,2005.4,5.983847]
[1742388373642,4.66380634,2005.5,2005.3,4.98676]
[1742388373848,4.66380634,2005.5,2005.3,9.97342]
[1742388374043,4.66380634,2005.6,2005.5,4.98624]
[1742388374361,0.5981,2005.9,2005.7,4.98563]
[1742388374555,4.66380634,2005.9,2005.7,5.484263]
[1742388374726,4.66380634,2005.9,2005.8,4.98554]
[1742388375433,4.66380634,2006.1,2006.0,4.98504]
[1742388376360,0.5981,2006.7,2006.4,4.98391]
[1742388376565,4.66380634,2006.4,2006.3,4.9842]
[1742388377978,0.5981,2007.0,2006.8,4.98293]
[1742388378124,4.66380634,2006.9,2006.8,4.98293]
[1742388379550,4.98293,2006.8,2006.5,5.476]
[1742388379748,4.98293,2006.8,2006.4,4.98393]
[1742388379749,4.66380634,2006.6,2006.4,4.98393]
[1742388380062,5.26190634,2006.6,2006.4,4.98397]
[1742388381063,4.66380634,2006.6,2006.5,4.9838]
[1742388382357,4.66380634,2006.6,2006.1,5.476]
[1742388382358,4.9838,2006.5,2006.3,4.98423]
[1742388382532,4.66380634,2006.4,2006.3,4.98423]
[1742388386098,0.5981,2006.8,2006.7,4.9833]
[1742388387055,0.5981,2006.8,2006.6,4.98346]
[1742388387392,5.21380634,2006.7,2006.5,4.98364]
[1742388387773,4.66380634,2006.7,2006.5,4.98364]
[1742388388089,5.21380634,2006.7,2006.5,4.98364]
[1742388388291,6.59327997,2006.7,2006.5,4.98373]
[1742388388443,6.59327997,2006.7,2006.4,4.98402]
[1742388388647,4.66380634,2006.5,2006.4,4.98402]
[1742388389274,4.66380634,2006.7,2006.6,4.98355]
[1742388389770,4.66380634,2007.0,2006.9,4.98278]
[1742388390691,4.66380634,2007.0,2006.8,4.98296]
[1742388390857,6.18643922,2007.0,2006.8,4.98296]
[1742388391057,6.18643922,2007.0,2006.8,4.98293]
[1742388391287,4.66380634,2007.0,2006.8,4.98293]
[1742388391493,5.21380634,2007.0,2006.9,4.9828]
[1742388392059,4.66380634,2007.0,2006.9,4.9828]
[1742388392279,2.5e-06,2007.1,2007.0,4.98256]
[1742388394171,2.5e-06,2007.1,2007.0,5.03238039]
[1742388394370,2.5e-06,2007.1,2007.0,4.98256]
[1742388396714,2.5e-06,2007.1,2006.9,4.9828]
[1742388396884,4.66380634,2007.0,2006.9,4.9828]
[1742388400175,4.66380634,2007.0,2006.8,4.98297]
[1742388400393,0.5981,2006.9,2006.7,4.98326]
[1742388400673,4.66380634,2006.8,2006.7,4.98315]
[1742388405225,4.20755682,2006.8,2006.7,9.96632]
[1742388406730,4.20755682,2006.8,2006.7,4.98315]
[1742388410938,4.98315,2006.7,2006.5,9.96743]
[1742388411102,4.20755682,2006.6,2006.5,4.98367]
[1742388418238,4.20755682,2006.8,2006.7,4.9833]
[1742388419252,1.1481025,2007.1,2006.9,4.98276]
[1742388419439,4.20755682,2007.0,2006.9,4.98264]
[1742388420441,4.078029,2006.9,2006.7,4.98316]
[1742388420671,4.20755682,2006.8,2006.3,0.8095]
[1742388420831,4.20755682,2006.4,2006.3,4.98429]
[1742388421138,4.20755682,2006.4,2006.1,0.8095]
[1742388421139,8.41511364,2006.4,2006.1,4.98462]
[1742388421331,4.20755682,2006.2,2006.1,4.98479]
[1742388422542,4.20755682,2006.2,2006.1,5.76269]
[1742388423234,4.1481,2006.7,2006.6,4.98355]
[1742388423430,6.12,2006.8,2006.7,4.9833]
[1742388423636,10.32755682,2006.8,2006.7,4.9833]
[1742388424935,4.20755682,2006.8,2006.7,4.9833]
[1742388425145,4.20755682,2006.8,2006.7,6.558001]
[1742388425679,2.5e-06,2007.1,2007.0,4.98256]
[1742388425832,4.20755932,2007.1,2007.0,4.98256]
[1742388428265,2.5e-06,2007.1,2007.0,4.98256]
[1742388430266,2.5e-06,2007.1,2006.9,10.75475]
[1742388430567,2.5e-06,2007.1,2007.0,4.98256]
[1742388431463,4.20755932,2007.1,2007.0,4.98256]
[1742388431790,4.20755932,2007.1,2007.0,6.34118607]
[1742388432637,4.20755932,2007.1,2007.0,5.58888607]
[1742388432946,4.20755932,2007.1,2007.0,4.98256]
[1742388436854,4.20755932,2007.1,2006.9,4.98264]
[1742388437086,4.20755932,2007.1,2006.9,9.9653]
[1742388437297,4.20755932,2007.1,2006.9,4.98264]
[1742388437580,4.20755932,2007.1,2006.9,9.9653]
[1742388437747,2.5e-06,2007.1,2007.0,4.98256]
[1742388437942,4.20755932,2007.1,2007.0,4.98256]
[1742388438682,2.5e-06,2007.1,2007.0,5.77506]
[1742388442987,2.5e-06,2007.1,2007.0,11.23806]
[1742388443308,2.5e-06,2007.1,2007.0,10.44556]
[1742388444790,4.20755932,2007.1,2007.0,10.44556]
[1742388445386,4.20755932,2007.1,2007.0,4.98256]
[1742388445602,0.5981,2007.0,2006.7,4.9832]
[1742388445907,4.20755682,2006.8,2006.7,4.9832]
[1742388446070,4.20755682,2006.8,2006.4,0.7675]
[1742388446406,4.20755682,2006.6,2006.5,4.98379]
[1742388446992,1.01885593,2007.0,2006.4,10.44602]
[1742388446993,4.20755682,2006.8,2006.7,4.9833]
[1742388447807,4.9823225,2007.1,2007.0,4.98256]
[1742388447808,2.5e-06,2007.1,2007.0,4.98256]
[1742388448103,4.20755932,2007.1,2007.0,4.98256]
[1742388451384,4.20755932,2007.1,2006.8,4.98297]
[1742388451385,4.80565932,2007.1,2006.8,4.98297]
[1742388451701,4.20755682,2006.9,2006.8,4.98297]
[1742388452014,4.20755682,2006.9,2006.7,10.44417]
[1742388452307,4.20755682,2006.9,2006.7,4.98317]
[1742388452794,4.20755682,2006.9,2006.7,9.96635]
[1742388453392,5.1071621,2006.9,2006.7,4.98317]
[1742388454581,4.20755682,2006.9,2006.8,4.98305]
[1742388455811,4.20755682,2006.9,2006.6,4.98352]
[1742388456105,4.20755682,2006.7,2006.6,4.98341]
[1742388458369,4.20755682,2006.7,2006.5,4.98358]
[1742388458586,4.20755682,2006.7,2006.5,9.96723]
[1742388458806,10.7081285,2006.7,2006.3,4.98411]
[1742388459110,5.58221,2006.3,2005.8,1.76433879]
[1742388459292,4.20755682,2005.9,2005.8,4.98535]
[1742388459613,4.20755682,2005.9,2005.6,5.74826]
[1742388459761,4.20755682,2005.7,2005.5,4.98627]
[1742388459964,4.20755682,2005.7,2005.2,0.7623]
[1742388460316,4.20755682,2005.3,2005.2,5.561983]
[1742388460825,13.4438,2006.1,2005.5,4.98619]
[1742388460826,5.53539,2005.9,2005.5,4.98619]
[1742388460968,0.55,2005.9,2005.6,4.98592]
[1742388461168,0.5981,2006.1,2005.3,5.74787]
[1742388461370,3.5981,2006.1,2005.8,4.98553]
[1742388461711,7.337177,2006.1,2005.9,4.98516]
[1742388461941,7.337177,2006.1,2005.8,4.98553]
[1742388462149,4.20755682,2005.9,2005.8,4.98553]
[1742388462440,4.20755682,2005.9,2005.6,4.98598]
[1742388462644,4.20755682,2005.7,2005.3,0.7611]
[1742388462944,1.35299138,2005.9,2005.6,4.98603]
[1742388463243,7.337177,2006.1,2005.8,4.98542]
[1742388463800,7.337177,2006.1,2005.8,9.97081]
[1742388464034,4.20755682,2005.9,2005.7,4.98576]
[1742388464239,12.321987,2006.1,2005.8,4.98554]
[1742388464550,12.321987,2006.1,2005.7,4.9857]
[1742388464944,12.321987,2006.1,2005.7,9.97129]
[1742388465850,4.20755682,2005.8,2005.6,9.97189]
[1742388466004,4.20755682,2005.7,2005.6,4.98587]
[1742388466607,4.20755682,2005.7,2005.5,4.98627]
[1742388466608,4.20755682,2005.8,2005.7,4.98556]
[1742388466802,0.5981,2006.1,2005.8,4.9854]
[1742388467018,4.20755682,2005.9,2005.8,4.9854]
[1742388467236,4.20755682,2005.9,2005.7,4.98577]
[1742388467615,4.20755682,2005.9,2005.6,4.98589]
[1742388467856,4.20755682,2005.7,2005.4,10.44553]
[1742388468009,4.20755682,2005.7,2005.3,4.98675]
[1742388468010,4.20755682,2005.5,2005.3,4.98675]
[1742388468216,4.20755682,2005.4,2005.3,4.98663]
[1742388468841,4.20755682,2005.4,2005.2,4.9869]
[1742388469550,4.20755682,2005.4,2005.3,4.98678]
[1742388471545,4.20755682,2005.4,2005.2,4.98695]
[1742388471764,4.20755682,2005.4,2005.2,4.98684]
[1742388472171,4.98684,2005.2,2004.9,4.98753]
[1742388472482,4.20755682,2005.0,2004.9,4.98753]
[1742388473189,0.5981,2005.3,2005.1,4.98715]
[1742388473481,0.5981,2005.3,2005.2,4.98703]
[1742388473683,1.1481,2005.5,2005.3,4.98678]
[1742388473968,0.5981,2005.5,2005.4,4.98653]
[1742388474136,0.5981,2005.5,2005.2,4.987]
[1742388474343,0.5981,2005.5,2005.1,4.98727]
[1742388474344,5.58452,2005.5,2005.1,4.98727]
[1742388474527,4.20755682,2005.2,2005.1,4.98727]
[1742388475730,4.20755682,2005.2,2005.0,4.98728]
[1742388475931,4.20755682,2005.2,2005.1,4.98728]
[1742388476428,4.20755682,2005.2,2004.7,10.81777046]
[1742388476429,4.20755682,2005.2,2004.7,10.44719]
[1742388476629,4.20755682,2004.8,2004.7,10.44718]
[1742388476873,4.20755682,2004.8,2004.6,4.98848]
[1742388477114,4.20755682,2004.8,2004.5,4.98873]
[1742388477318,0.5981,2004.7,2004.2,0.8015]
[1742388477499,0.5981,2004.7,2004.5,4.9886]
[1742388477698,0.5981,2004.7,2004.4,4.98893]
[1742388477900,4.20755682,2004.5,2004.4,4.98893]
[1742388478105,4.20755682,2004.5,2004.4,4.93893]
[1742388480733,0.5981,2004.9,2004.7,4.98811]
[1742388480921,4.20755682,2004.8,2004.7,4.98811]
[1742388481479,8.41511364,2004.8,2004.5,4.98872]
[1742388481724,4.20755682,2004.6,2004.5,4.98872]
[1742388483035,0.5981,2005.1,2004.9,4.98775]
[1742388483187,4.20755682,2005.0,2004.9,4.98775]
[1742388484334,4.20755682,2005.0,2004.8,4.98796]
[1742388484539,5.1868255,2005.0,2004.8,4.98796]
[1742388485099,4.20755682,2005.0,2004.8,4.98796]
[1742388486933,4.20755682,2005.0,2004.9,4.98777]
[1742388487343,4.20755682,2005.0,2004.8,9.97585]
[1742388487531,4.20755682,2005.0,2004.8,4.98791]
[1742388487918,4.20755682,2005.0,2004.7,4.98815]
[1742388488121,4.20755682,2004.8,2004.7,4.98815]
[1742388489565,4.20755682,2004.8,2004.7,6.064037]
[1742388489701,4.20755682,2004.8,2004.7,4.98815]
[1742388490407,4.20755682,2004.8,2004.6,10.75915]
[1742388490638,4.20755682,2004.8,2004.6,5.77059]
[1742388490841,4.20755682,2004.8,2004.4,5.82127]
[1742388490842,13.40324364,2004.8,2004.4,5.82127]
[1742388491041,4.20755682,2004.5,2004.4,4.98887]
[1742388491250,4.20755682,2004.5,2004.2,11.27253]
[1742388491404,4.98861,2004.6,2004.3,4.98924]
[1742388491605,6.40706068,2004.6,2004.3,4.98924]
[1742388492563,10.580372,2004.2,2003.8,0.8307]
[1742388492723,4.98931,2004.3,2003.9,4.99016]
[1742388492921,4.98931,2004.3,2003.9,4.99014]
[1742388493127,5.82660356,2004.3,2004.0,4.9899]
[1742388493317,0.83729356,2004.3,2004.0,9.97982]
[1742388493521,4.20755682,2004.1,2003.9,4.99017]
[1742388493721,4.20755682,2004.0,2003.9,4.99017]
[1742388494342,9.01321364,2004.0,2003.7,4.99058]
[1742388494561,4.20755682,2003.8,2003.7,5.80248]
[1742388495571,4.20755682,2003.8,2003.6,4.99097]
[1742388495761,5.64716818,2003.8,2003.5,10.4482]
[1742388496088,4.20755682,2003.6,2003.5,4.99126]
[1742388496764,4.20755682,2003.6,2003.4,9.9829]
[1742388496970,4.20755682,2003.6,2003.4,4.99143]
[1742388497132,4.20755682,2003.6,2003.5,4.99126]
[1742388497336,4.77227364,2003.6,2003.0,0.827]
[1742388497537,4.20755682,2003.1,2003.0,5.81944]
[1742388498356,4.20755682,2003.1,2003.0,4.99244]
[1742388498535,0.56471682,2003.6,2003.3,4.99166]
[1742388498889,0.5981,2003.7,2003.4,4.99144]
[1742388499090,3.84151136,2003.8,2003.5,4.99117]
[1742388499435,3.84151136,2003.8,2003.5,4.9911]
[1742388499640,10.5788,2003.9,2003.2,11.19919]
[1742388499641,0.5981,2003.9,2003.2,11.19919]
[1742388499991,4.20755682,2003.6,2003.5,4.99111]
[1742388500157,0.5981,2004.4,2003.5,5.76006]
[1742388500338,0.5981,2004.4,2003.8,4.99041]
[1742388500538,5.5872,2004.4,2004.0,4.99001]
[1742388500744,5.5872,2004.4,2004.1,4.98976]
[1742388500745,0.55872,2004.3,2004.1,4.98976]
[1742388500946,4.20755682,2004.2,2004.1,4.98976]
[1742388502078,4.20755682,2004.2,2004.0,4.99001]
[1742388502576,9.19717682,2004.2,2003.8,9.98085]
[1742388502783,4.20755682,2004.0,2003.9,4.99018]
[1742388502979,4.20755682,2004.0,2003.8,4.99037]
[1742388503172,4.20755682,2004.0,2003.8,9.98072]
[1742388503982,4.20755682,2004.0,2003.8,4.99035]
[1742388504697,4.20755682,2004.0,2003.9,4.99026]
[1742388505193,4.20755682,2004.2,2004.1,4.98977]
[1742388506900,4.20755682,2004.4,2004.3,4.98927]
[1742388507350,4.20755682,2004.4,2004.3,5.79887]
[1742388507995,4.98754,2005.0,2004.3,5.387416]
[1742388507996,0.5981,2005.0,2004.3,5.387416]
[1742388508200,4.20755682,2004.9,2004.8,4.98783]
[1742388509079,9.97431,2005.2,2004.8,4.98783]
[1742388509387,4.20755682,2004.9,2004.8,4.98783]